[Event "55th Biel Festival ATO 2022"]
[Site "Biel"]
[Date "2022.07.15"]
[Round "3.6"]
[White "Forney, Robert"]
[Black "Manmay Chopra"]
[Result "0-1"]
[ECO "B01"]
[WhiteElo "1828"]
[BlackElo "1934"]
[Annotator "ChessBase"]
[PlyCount "86"]
[EventDate "2022.07.13"]
[EventType "swiss"]
[EventCountry "SUI"]
[SourceTitle "playchess.com"]
[Source "ChessBase"]
[SourceQuality "1"]
[TimeControl "40/5400+30:1800+30"]

1. e4 {[%emt 0:03:06]} Nc6 {[%emt 0:00:42]} 2. d4 {[%emt 0:00:09]} d5 {[%emt 0:00:08]} 3. exd5 {[%emt 0:00:27]} Qxd5 {[%emt 0:00:09]} 4. Nf3 {[%emt 0:00:02]} e5 {[%emt 0:00:08]} 5. dxe5 {[%emt 0:03:03]} Qxd1+ {[%emt 0:00:10]} 6. Kxd1 {[%emt 0:00:02]} Bg4 {[%emt 0:00:09]} 7. Bf4 {[%emt 0:09:32]} O-O-O+ {[%emt 0:00:14]} 8. Nbd2 {[%emt 0:00:17]} Bc5 {[%emt 0:23:38]} 9. Bg3 {[%emt 0:00:45]} Nge7 {[%emt 0:02:16]} 10. Bd3 {[%emt 0:05:14]} Nf5 {[%emt 0:11:19]} 11. Ne4 {[%emt 0:00:06]} Nxg3 {[%emt 0:00:56]} 12. hxg3 {[%emt 0:00:30]} Bd4 {[%emt 0:04:21]} 13. Kc1 {[%emt 0:15:19]} Bxf3 {[%emt 0:00:30]} 14. gxf3 {[%emt 0:00:24]} Nxe5 {[%emt 0:00:06]} 15. Be2 {[%emt 0:02:25]} f5 {[%emt 0:01:26]} 16. Ng5 {[%emt 0:00:52]} Bxf2 {[%emt 0:00:29]} 17. f4 {[%emt 0:06:24]} Bxg3 {[%emt 0:01:25]} 18. Rf1 {[%emt 0:04:46]} Ng6 {[%emt 0:09:28]} 19. Nf7 {[%emt 0:03:54]} Bxf4+ {[%emt 0:00:44]} 20. Kb1 {[%emt 0:00:07]} Rhe8 {[%emt 0:00:19]} 21. Bd3 {[%emt 0:02:41]} Rd5 {[%emt 0:00:27]} 22. a4 {[%emt 0:03:28]} Re7 {[%emt 0:01:14]} 23. Nh8 {[%emt 0:00:25]} Nxh8 {[%emt 0:00:29]} 24. Rxf4 {[%emt 0:00:05]} Re1+ {[%emt 0:00:06]} 25. Ka2 {[%emt 0:00:32]} Rxa1+ {[%emt 0:00:05]} 26. Kxa1 {[%emt 0:00:00]} g6 {[%emt 0:00:14]} 27. Bc4 {[%emt 0:05:16]} Re5 {[%emt 0:01:32]} 28. Bg8 {[%emt 0:00:37]} Re7 {[%emt 0:01:17]} 29. Rh4 {[%emt 0:00:11]} h5 {[%emt 0:00:31]} 30. Rh1 {[%emt 0:03:15]} Kd7 {[%emt 0:00:08]} 31. Kb1 {[%emt 0:01:53]} Nf7 {[%emt 0:00:27]} 32. Kc1 {[%emt 0:03:02]} Nh6 {[%emt 0:00:57]} 33. Rg1 {[%emt 0:04:00]} Nxg8 {[%emt 0:00:39]} 34. Rxg6 {[%emt 0:00:04]} Rh7 {[%emt 0:00:24]} 35. Rxg8 {[%emt 0:00:07]} h4 {[%emt 0:00:08]} 36. Rg2 {[%emt 0:00:28]} Ke6 {[%emt 0:02:48]} 37. Kd2 {[%emt 0:00:16]} f4 {[%emt 0:00:11]} 38. Ke2 {[%emt 0:00:45]} Kf5 {[%emt 0:00:14]} 39. Kf3 {[%emt 0:02:12]} h3 {[%emt 0:00:15]} 40. Rh2 {[%emt 0:00:06]} Re7 {[%emt 0:00:09]} 41. Rd2 {[%emt 0:31:27]} Re3+ {[%emt 0:30:20]} 42. Kf2 {[%emt 0:00:03]} h2 {[%emt 0:01:05]} 43. Kg2 {[%emt 0:00:04]} f3+ {[%emt 0:00:08]} 0-1

[Event "55th Biel Festival ATO 2022"]
[Site "Biel"]
[Date "2022.07.18"]
[Round "5.1"]
[White "Manmay Chopra"]
[Black "Hari Charan Sai Kalluri"]
[Result "0-1"]
[ECO "B53"]
[WhiteElo "1934"]
[BlackElo "2041"]
[Annotator "TA"]
[PlyCount "179"]
[EventDate "2022.07.13"]
[EventType "swiss"]
[EventCountry "SUI"]
[SourceTitle "playchess.com"]
[Source "ChessBase"]
[SourceQuality "1"]
[TimeControl "40/5400+30:1800+30"]

{[%evp 18,179,42,37,89,58,83,56,68,60,72,74,92,91,88,85,95,95,162,147,172,136,137,122,181,175,239,143,135,95,92,95,89,0,0,0,0,-168,-173,-168,-150,-161,-150,-140,-152,-170,-175,-172,-141,-195,-170,-193,-151,-223,0,-169,-175,-170,-153,-309,-296,-310,-278,-273,-277,-344,-209,-212,-205,-232,-224,-223,-177,-154,-168,-209,-158,-225,-201,-194,-184,-220,-213,-218,-220,-251,-244,-302,-282,-306,-304,-406,-387,-581,-575,-546,-540,-661,-527,-538,-544,-592,-531,-512,-509,-438,-279,-261,-268,-457,-457,-432,-446,-481,-484,-758,-716,-943,-942,-1001,-750,-942,-846,-807,-752,-3907,-3938,-2291,-1917,-12469,-12798,-5720,0,-1953,-1996,-7642,-7108,-7229,-7229,-5715,-6201,-5624,-5622,-1710,-1470,-4818,-3258,-5501,-5558,-4782,-4593,-4790,-2177,-2395,-1380,-29975,-29976,-29977,-29978,-29977,-29978,-29977,-12826,-29980]} 1. e4 {[%emt 0:03:03]} c5 {[%emt 0:00:11]} 2. Nf3 {[%emt 0:00:06]} d6 {[%emt 0:00:11]} 3. d4 {[%emt 0:00:05]} cxd4 {[%emt 0:00:22]} 4. Qxd4 {[%emt 0:00:07]} Nc6 {[%emt 0:01:40]} 5. Bb5 {[%emt 0:00:08]} Bd7 {[%emt 0:01:03]} 6. Bxc6 {[%emt 0:01:11]} Bxc6 {[%emt 0:00:36]} 7. Nc3 {[%emt 0:01:08]} Nf6 {[%emt 0:05:22]} 8. Bg5 {[%emt 0:00:13]} e5 {[%emt 0:05:59]} 9. Qd3 {[%emt 0:00:57]} Be7 {[%emt 0:14:23]} 10. O-O-O {[%emt 0:01:39]} Qb6 {[%emt 0:06:21] B53: Sicilian: 2...d6: Lines with Qxd4.} (10... Ng4 $14 11. Qd2 (11. Bxe7 Qxe7 12. Rd2 Rd8 $14) 11... O-O) 11. Rhf1 {[%emt 0:02:49] [#]} O-O-O $146 {[%emt 0:03:25]} ({Predecessor:} 11... Rd8 12. Bxf6 Bxf6 13. Nd5 Bxd5 14. Qxd5 O-O 15. Kb1 Be7 16. Nd2 Rc8 17. Nc4 Qc7 18. Ne3 {½-½ (46) Nur Mukhametova,A (2213)-Bulatova,K (2143) Moscow 2019}) 12. Bxf6 {[%emt 0:00:43]} Bxf6 {[%emt 0:01:53] White is slightly better.} 13. Kb1 {[%emt 0:00:17]} Rhe8 {[%emt 0:14:41][%cal Od6d5]} 14. Nd2 {[%emt 0:14:16][%cal Bf3d2,Bd2c4,Bc4e3,Be3d5,Bd5b6][%mdl 32]} Re6 {[%emt 0:17:49]} 15. Nc4 {[%emt 0:00:23]} Qc5 {[%emt 0:00:18]} 16. Ne3 {[%emt 0:00:12]} a5 {[%emt 0:05:39]} 17. a4 {[%emt 0:05:51]} g6 {[%emt 0:07:23]} (17... Kb8 $16) 18. Ned5 $18 {[%emt 0:01:53]} Bg7 {[%emt 0:02:59]} 19. g4 {[%emt 0:09:12]} Kb8 {[%emt 0:01:46]} 20. h4 {[%emt 0:00:37]} h6 {[%emt 0:00:37]} (20... Ree8 $16) 21. Qf3 {[%emt 0:04:37]} Be8 {[%emt 0:02:44]} (21... Rd7 {is a better defense.} 22. Qe3 Re8) 22. Qe3 {[%emt 0:00:54]} (22. Rd3 $18) 22... Rc8 $16 {[%emt 0:01:42]} 23. Nb6 {[%emt 0:05:05] Pair of Knights!} Rc6 {[%emt 0:02:30]} 24. Qxc5 {[%emt 0:00:16]} Rxc5 {[%emt 0:00:34]} 25. Ncd5 {[%emt 0:01:10]} (25. f3 $16) 25... Bf6 $11 {[%emt 0:01:00]} 26. Rh1 {[%emt 0:21:22]} Bd8 {[%emt 0:00:45] ...Rc6 is the strong threat.} 27. g5 $2 {[%emt 0:03:39]} (27. b3 $11) 27... hxg5 $19 {[%emt 0:00:22] Hoping for ...Ka7.} 28. hxg5 {[%emt 0:00:02] [#]} Ka7 $1 {[%emt 0:00:11]} (28... Rc6 29. b4 $11) 29. b4 {[%emt 0:01:13]} axb4 {[%emt 0:00:15]} 30. a5 {[%emt 0:00:05]} Rxa5 {[%emt 0:00:38]} (30... Bxg5 31. Rh8 $15) 31. Nc4 {[%emt 0:00:19]} Rc5 {[%emt 0:00:14]} 32. Nb2 {[%emt 0:00:53]} Bxg5 {[%emt 0:00:50]} 33. Nxb4 {[%emt 0:00:55]} (33. Rh8 $17) 33... Bb5 {[%emt 0:00:36]} 34. Rh3 {[%emt 0:00:43]} Kb8 {[%emt 0:01:08]} 35. Rh8+ {[%emt 0:01:02]} (35. Rb3 $17 {might work better.}) 35... Ka7 {[%emt 0:00:42]} 36. Rh3 $1 {[%emt 0:00:08]} Rf6 {[%emt 0:00:35]} 37. Ra3+ {[%emt 0:02:47]} Kb8 {[%emt 0:00:16]} 38. Rg1 $2 {[%emt 0:04:10]} (38. Rb3 $17) 38... Bd2 {[%emt 0:00:54]} ({Weaker is} 38... Rxf2 39. Rxg5 Re2 40. Rg1 $17) 39. N4d3 {[%emt 0:00:23]} Bxd3 {[%emt 0:00:28]} 40. Nxd3 {[%emt 0:00:23]} Rc4 {[%emt 0:00:47]} 41. Rg4 {[%emt 0:30:37]} Re6 {[%emt 0:06:46]} 42. Rb3 {[%emt 0:00:00]} Re8 {[%emt 0:02:34] White must now prevent ...Rec8.} 43. Rh4 {[%emt 0:00:00]} Rec8 {[%emt 0:04:23]} 44. Rh7 {[%emt 0:00:00]} R8c7 {[%emt 0:00:28]} ({And not} 44... Rxe4 45. Rxf7 Rc7 46. Rf6 $17) 45. Rh8+ {[%emt 0:00:00] [#]} Ka7 $1 {[%emt 0:00:02]} 46. f3 {[%emt 0:00:00]} Rc3 {[%emt 0:06:11]} ({Stronger than} 46... Rxc2 47. Ra3+ Kb6 48. Rb3+ Ka7 49. Ra3+ Kb6 50. Rb3+ Ka7 $11) 47. Rb2 {[%emt 0:00:00]} (47. Rxc3 $17 Bxc3 48. Rd8) 47... Rc8 {[%emt 0:01:47]} 48. Rh7 {[%emt 0:00:00]} R3c7 {[%emt 0:00:10]} 49. Rh2 {[%emt 0:00:00]} Bc3 {[%emt 0:00:18]} 50. Rb5 {[%emt 0:00:00]} Rc6 {[%emt 0:04:10]} 51. Kc1 {[%emt 0:00:00]} Ra6 {[%emt 0:00:15]} 52. Kd1 {[%emt 0:00:00]} Ra1+ {[%emt 0:00:45]} 53. Ke2 {[%emt 0:00:00]} Bd4 {[%emt 0:01:00][%cal Rc8c2]} 54. Nb4 {[%emt 0:00:00]} Rc3 {[%emt 0:00:54]} 55. Rh7 {[%emt 0:00:00]} (55. Rh3 {was worth a try.}) 55... Re3+ {[%emt 0:00:33]} 56. Kd2 {[%emt 0:00:00]} Rxf3 {[%emt 0:00:36] Strongly threatening ...g5.} 57. Nd3 {[%emt 0:00:21]} Rg1 {[%emt 0:01:09]} 58. Rh2 {[%emt 0:00:48] Inhibits Rg2+.} Rfg3 {[%emt 0:01:32]} 59. Rd5 {[%emt 0:00:25]} R1g2+ {[%emt 0:00:23]} 60. Rxg2 {[%emt 0:00:02]} Rxg2+ {[%emt 0:00:01][%mdl 4096] Endgame KRB-KRN} 61. Kd1 {[%emt 0:00:21]} Bc5 {[%emt 0:01:00]} 62. Nxc5 {[%emt 0:00:22]} dxc5 {[%emt 0:00:01]} 63. Rxe5 $2 {[%emt 0:00:08] KR-KR} (63. Rxc5 {was the only chance.} f6 64. Rc8) 63... Kb6 {[%emt 0:00:37]} 64. Re7 {[%emt 0:00:11]} Rf2 {[%emt 0:00:05]} 65. e5 {[%emt 0:00:03]} g5 {[%emt 0:00:42] Threatens to win with ...g4.} 66. e6 {[%emt 0:03:02]} (66. Ke1 $142 Rxc2 67. Rxf7) 66... fxe6 {[%emt 0:00:14]} 67. Rxe6+ {[%emt 0:00:03]} Kb5 {[%emt 0:00:07]} 68. Rg6 {[%emt 0:00:56]} Rf5 {[%emt 0:01:17]} 69. Kc1 {[%emt 0:00:15]} Ka5 {[%emt 0:00:29]} 70. Kb2 {[%emt 0:00:25]} b5 {[%emt 0:00:27] And now ...Kb4 would win.} 71. Kb3 {[%emt 0:01:18]} Rf3+ {[%emt 0:01:42]} 72. Kb2 {[%emt 0:00:05]} Rg3 {[%emt 0:00:39]} 73. c3 {[%emt 0:06:35]} Rg2+ {[%emt 0:00:43]} 74. Ka3 {[%emt 0:00:13]} Rg3 {[%emt 0:01:06]} (74... c4 $142 75. Rg8 Rc2 76. Ra8+ Kb6 77. Rb8+ Kc6 78. Rc8+ Kd7) 75. Kb2 $1 {[%emt 0:00:50]} c4 {[%emt 0:01:30]} 76. Rg8 {[%emt 0:01:13]} Rg2+ {[%emt 0:00:26]} 77. Ka3 {[%emt 0:00:14]} Rc2 {[%emt 0:00:39]} 78. Ra8+ {[%emt 0:00:08]} Kb6 {[%emt 0:00:01]} 79. Rb8+ {[%emt 0:00:05]} Kc6 {[%emt 0:00:22]} 80. Rc8+ {[%emt 0:00:22]} Kb7 {[%emt 0:00:29]} 81. Rg8 {[%emt 0:00:06]} Rxc3+ {[%emt 0:02:01]} 82. Kb4 {[%emt 0:00:00]} Rb3+ {[%emt 0:00:17]} 83. Kc5 {[%emt 0:00:04]} c3 {[%emt 0:00:17]} 84. Rg7+ {[%emt 0:00:10]} Kb8 {[%emt 0:00:58] ( -> ...c2)} 85. Kb6 {[%emt 0:01:26]} Kc8 {[%emt 0:00:01] aiming for ...Kd8.} 86. Rxg5 {[%emt 0:07:38]} Kd7 {[%emt 0:00:19]} 87. Rd5+ {[%emt 0:02:37]} Ke6 {[%emt 0:00:21]} 88. Rc5 {[%emt 0:00:45]} Kd6 {[%emt 0:00:14]} 89. Rh5 {[%emt 0:00:31]} b4 {[%emt 0:00:48]} (89... c2 $142 90. Rh6+ Kd5 91. Rh1 Rb1 92. Rh5+ Kd4 93. Rh4+ Kc3 94. Rh3+ Kb4 95. Rh4+ Ka3 96. Rh7 c1=Q 97. Rh5 Qg1+ 98. Kb7 Qg7+ 99. Kb6 Qg6+ 100. Kc7 Qxh5 101. Kd6 Re1 102. Kd7 Qc5 103. Kd8 Qa7 104. Kc8 Re8#) 90. Kb5 {[%emt 0:00:09] Weighted Error Value: White=0.35/Black=0.21 (precise)} 0-1

[Event "55th Biel Festival ATO 2022"]
[Site "Biel"]
[Date "2022.07.18"]
[Round "5.2"]
[White "Sala, Matteo"]
[Black "Arndt Uwe"]
[Result "1-0"]
[ECO "C06"]
[WhiteElo "1708"]
[BlackElo "1964"]
[Annotator "TA"]
[PlyCount "51"]
[EventDate "2022.07.13"]
[EventType "swiss"]
[EventCountry "SUI"]
[SourceTitle "playchess.com"]
[Source "ChessBase"]
[SourceQuality "1"]
[TimeControl "40/5400+30:1800+30"]

{[%evp 16,51,57,52,106,108,111,105,147,174,211,246,237,198,299,170,295,248,275,227,1148,1039,1368,1352,1326,1271,2567,2288,29987,29984,29983,29980,29988,29987,29993,29992,29997,29998]} 1. e4 {[%emt 0:00:41]} e6 {[%emt 0:00:08]} 2. d4 {[%emt 0:00:09]} d5 {[%emt 0:00:06]} 3. Nd2 {[%emt 0:00:22]} Nf6 {[%emt 0:01:22]} 4. e5 {[%emt 0:00:04]} Nfd7 {[%emt 0:00:06]} 5. Bd3 {[%emt 0:00:04]} c5 {[%emt 0:00:30]} 6. c3 {[%emt 0:00:04]} Nc6 {[%emt 0:01:12]} 7. Ne2 {[%emt 0:00:19]} cxd4 {[%emt 0:02:30]} 8. cxd4 {[%emt 0:00:06]} a5 {[%emt 0:03:14]} 9. O-O {[%emt 0:04:23]} Qb6 {[%emt 0:03:16] C06: French Tarrasch: 3...Nf6 4 e5 Nfd7 5 Bd3 main lines.} ({Better is} 9... Nb6 $14) 10. Nf3 $16 {[%emt 0:00:30]} Be7 {[%emt 0:01:06]} 11. a3 {[%emt 0:15:50]} f6 {[%emt 0:06:33][%cal Rf6e5] White is better.} 12. Nf4 {[%emt 0:22:11] [#]} Nf8 $146 {[%emt 0:27:46]} ({Predecessor:} 12... fxe5 13. Nxe5 Ndxe5 14. dxe5 O-O 15. Qh5 h6 16. Ng6 Rf7 17. Nh8 Nxe5 18. Nxf7 Nxd3 19. Nxh6+ gxh6 {1-0 (27) Corral,C (1882)-Zhao,K (1666) Forchheim 2010}) 13. exf6 {[%emt 0:07:41]} Bxf6 {[%emt 0:03:35]} 14. Re1 {[%emt 0:04:50]} Ne7 {[%emt 0:06:11]} (14... Kf7 $142 15. b3 Ng6) 15. Bd2 {[%emt 0:11:24]} (15. Ne5 $142) 15... Bd7 {[%emt 0:01:53]} (15... Nfg6 $142 16. Bxg6+ hxg6) 16. b4 {[%emt 0:04:01]} a4 {[%emt 0:03:13]} 17. Rc1 {[%emt 0:03:14] Strongly threatening Ne5.} g5 $2 {[%emt 0:07:39] [#]} (17... Nfg6 18. Qe2 Rc8 19. Rxc8+ Bxc8 20. Nxe6 Bxe6) 18. Nxg5 $1 {[%emt 0:02:15][%mdl 512] aiming for Qh5+.} h5 {[%emt 0:02:43]} (18... Qd6 19. Qh5+) 19. Nxh5 {[%emt 0:05:19]} Bxd4 {[%emt 0:00:13]} 20. Qf3 {[%emt 0:04:45]} Bc8 {[%emt 0:02:42]} 21. Qf7+ {[%emt 0:03:18]} Kd7 {[%emt 0:00:09]} 22. Nf6+ {[%emt 0:00:47] White mates.} Bxf6 {[%emt 0:00:50]} 23. Qxf6 {[%emt 0:00:09]} Rg8 {[%emt 0:00:59]} 24. Bf4 {[%emt 0:00:55]} Rxg5 {[%emt 0:06:44]} 25. Bb5+ {[%emt 0:02:59] This bishop pair is nice.} Nc6 {[%emt 0:00:28]} 26. Qf7+ {[%emt 0:00:32] Black did not feel at home in the position after the opening.  Weighted Error Value: White=0.21 (precise) /Black=0.77} 1-0

[Event "55th Biel Festival ATO 2022"]
[Site "Biel"]
[Date "2022.07.18"]
[Round "5.3"]
[White "Stijve Niels"]
[Black "Altok, Mesut"]
[Result "1-0"]
[ECO "B96"]
[WhiteElo "1958"]
[BlackElo "1890"]
[Annotator "TA"]
[PlyCount "65"]
[EventDate "2022.07.13"]
[EventType "swiss"]
[EventCountry "SUI"]
[SourceTitle "playchess.com"]
[Source "ChessBase"]
[SourceQuality "1"]
[TimeControl "40/5400+30:1800+30"]

{[%evp 17,65,40,45,0,71,75,127,120,212,215,428,393,394,392,379,259,320,306,311,297,536,516,526,502,518,430,529,529,559,432,647,643,640,628,824,821,789,795,758,692,916,766,1060,1062,1074,1059,1735,1726,29996,29996]} 1. e4 {[%emt 0:00:03]} c5 {[%emt 0:02:30]} 2. Nf3 {[%emt 0:00:28]} d6 {[%emt 0:01:05]} 3. d4 {[%emt 0:00:08]} cxd4 {[%emt 0:00:09]} 4. Nxd4 {[%emt 0:00:07]} Nf6 {[%emt 0:00:08]} 5. Nc3 {[%emt 0:00:07]} a6 {[%emt 0:01:15]} 6. Bg5 {[%emt 0:00:12]} e6 {[%emt 0:00:26]} 7. f4 {[%emt 0:00:10]} Nbd7 {[%emt 0:03:00]} 8. Qe2 {[%emt 0:00:58]} Qc7 {[%emt 0:03:35]} 9. O-O-O {[%emt 0:00:46]} b5 {[%emt 0:01:18]} 10. g3 {[%emt 0:00:57] B96: Sicilian Najdorf: 6 Bg5 e6 7 f4, lines other than 7...Qb6 and 7...Be7.} Bb7 {[%emt 0:01:28]} (10... b4 $11 11. Na4 Bb7) 11. Bg2 {[%emt 0:01:19][%cal Oe4e5]} Rc8 {[%emt 0:01:11] [#]} ({Black should try} 11... Qc4) 12. e5 $1 $16 {[%emt 0:21:33] White is more active. White is better.} Bxg2 {[%emt 0:12:41]} (12... dxe5 $16 13. fxe5 (13. Bxb7 Qxb7 14. fxe5 Nd5 $11) 13... Bxg2 14. exf6 Qe5 15. Qxg2 Qxg5+ 16. Kb1 Nxf6) 13. exf6 $18 {[%emt 0:01:55] [#]} Qc4 $146 {[%emt 0:01:15]} (13... Bxh1 $2 14. Nxe6 Qc6 15. Nd4+ Ne5 16. Nxc6 $18) (13... Bh3) ({Predecessor:} 13... gxf6 14. Nxe6 Qc4 15. Qxc4 bxc4 16. Nxf8 fxg5 17. Nxd7 Bxh1 18. Nf6+ Ke7 19. fxg5 Bb7 {½-½ (41) Bronstein,L-Szmetan,J Santa Fe 1973}) 14. Qxg2 {[%emt 0:18:20]} gxf6 {[%emt 0:01:35]} 15. Bh4 {[%emt 0:03:20]} b4 {[%emt 0:01:19]} 16. Nb1 {[%emt 0:02:26][%cal Bc3b1,Bb1d2,Bd2c4,Bc4e3,Be3g4,Bg4e5,Be5c6,Bc6b4][%mdl 32]} Qxa2 {[%emt 0:03:01]} 17. Qb7 {[%emt 0:06:46][%csl LRb4,LRc8]} Qc4 {[%emt 0:01:46]} 18. Nd2 {[%emt 0:02:12]} Rc7 {[%emt 0:07:26]} (18... Qc7 19. Qxa6 Be7) 19. Qa8+ {[%emt 0:09:26]} Rc8 {[%emt 0:00:45]} 20. Nxc4 {[%emt 0:00:42]} Rxa8 {[%emt 0:00:06]} 21. Rhe1 {[%emt 0:03:04]} d5 {[%emt 0:08:48]} 22. Ne3 {[%emt 0:01:02] [#] And now Nxd5 would win.} Kd8 {[%emt 0:01:03]} 23. Ng4 {[%emt 0:02:58]} Bg7 {[%emt 0:03:11]} (23... Kc7 $142 24. Nxf6 Bg7 25. Rxe6 fxe6) 24. f5 {[%emt 0:01:49]} e5 {[%emt 0:05:49]} 25. Nxe5 {[%emt 0:00:15]} Rf8 {[%emt 0:00:08]} 26. Nec6+ {[%emt 0:03:07]} Kc7 {[%emt 0:00:42]} 27. Nxb4 {[%emt 0:00:14]} Nb6 {[%emt 0:01:26]} 28. g4 {[%emt 0:07:37] aiming for Re7+.} Bh6+ {[%emt 0:02:22]} 29. Kb1 {[%emt 0:00:15] Strongly threatening Re7+.} Bf4 {[%emt 0:00:34]} 30. Re7+ {[%emt 0:04:35]} Kd6 {[%emt 0:02:43]} 31. Bxf6 {[%emt 0:00:10] Black must now prevent Rb7.} Bxh2 {[%emt 0:04:12]} 32. Rb7 {[%emt 0:00:35]} Nc8 {[%emt 0:04:01]} 33. Nb5+ {[%emt 0:00:24] Black got outplayed after the opening.  Weighted Error Value: White=0.25 (precise) /Black=1.12} 1-0

[Event "55th Biel Festival ATO 2022"]
[Site "Biel"]
[Date "2022.07.18"]
[Round "5.4"]
[White "Harisurya Bharadwaj Gundepudi"]
[Black "Marcos Herrero, Francisco"]
[Result "1-0"]
[ECO "A43"]
[WhiteElo "1924"]
[BlackElo "1877"]
[Annotator "TA"]
[PlyCount "89"]
[EventDate "2022.07.13"]
[EventType "swiss"]
[EventCountry "SUI"]
[SourceTitle "playchess.com"]
[Source "ChessBase"]
[SourceQuality "1"]
[TimeControl "40/5400+30:1800+30"]

{[%evp 10,89,46,27,68,29,30,11,56,29,98,110,99,100,119,118,118,117,135,54,143,136,179,187,185,182,296,296,298,245,288,286,313,302,293,293,300,291,282,287,298,302,307,298,366,372,393,377,380,377,369,354,424,424,392,317,328,318,310,304,364,362,362,360,407,418,381,372,607,607,718,755,716,642,925,846,681,618,29989,29990,29991,29992]} 1. d4 {[%emt 0:01:44][%cal Bd2d4,Bd4d5][%mdl 32]} Nf6 {[%emt 0:02:26]} 2. Bf4 {[%emt 0:00:29]} c5 {[%emt 0:00:09]} 3. d5 {[%emt 0:00:16]} d6 {[%emt 0:01:54]} 4. Nc3 {[%emt 0:00:47]} g6 {[%emt 0:00:10]} 5. e4 {[%emt 0:00:12]} Bg7 {[%emt 0:00:27]} 6. Nf3 {[%emt 0:00:19]} Nbd7 {[%emt 0:00:21] A43: Schmid Benoni.} 7. Qd2 {[%emt 0:00:39]} O-O {[%emt 0:10:19]} 8. Be2 {[%emt 0:02:44]} Qa5 {[%emt 0:00:26] The position is equal.} (8... b5 {looks sharper.} 9. Bxb5 Rb8 10. O-O Nxe4 11. Nxe4 Rxb5 12. Bh6 Nf6) 9. O-O {[%emt 0:01:00] [#]} b5 $146 {[%emt 0:00:20]} (9... a6 $11) ({Predecessor:} 9... a6 10. e5 dxe5 11. Nxe5 Nxe5 12. Bxe5 b5 13. d6 exd6 14. Qxd6 Be6 15. Qxc5 Nd7 {½-½ (53) Fadii,T (1964)-Kamara,A (1910) Batumi 2018}) 10. Nxb5 $16 {[%emt 0:00:32]} Qxd2 {[%emt 0:02:38]} 11. Nxd2 {[%emt 0:00:11]} ({Worse is} 11. Bxd2 Nxe4 12. Ba5 Nb6 $15) 11... a6 {[%emt 0:05:11] [#]} 12. Nc3 {[%emt 0:01:56] White is much more active. The black rooks are badly placed.} Nb6 {[%emt 0:05:09]} 13. h3 {[%emt 0:01:16]} Nfd7 {[%emt 0:00:57]} 14. Nc4 {[%emt 0:01:45]} ({White should play} 14. Bg5 $16) 14... Rb8 {[%emt 0:00:43]} (14... Nxc4 $14 15. Bxc4 f5) 15. Na5 {[%emt 0:12:28]} Ra8 {[%emt 0:09:18]} 16. a4 {[%emt 0:04:18][%cal Ba2a4,Ba4a5][%mdl 32] Nc6 is the strong threat.} Ne5 {[%emt 0:01:23]} 17. Be3 {[%emt 0:00:19]} Ned7 {[%emt 0:11:55]} (17... f5 $142) 18. Nc6 $18 {[%emt 0:00:13]} Bb7 {[%emt 0:00:47]} 19. Nxe7+ {[%emt 0:02:42]} Kh8 {[%emt 0:00:05]} 20. a5 {[%emt 0:03:24]} Rfe8 {[%emt 0:03:24]} 21. Nxg6+ {[%emt 0:01:00]} ({Don't play} 21. axb6 $6 Rxe7 22. Ra3 (22. Bg5 Ree8 $18) 22... Bxc3 $18) 21... hxg6 {[%emt 0:00:16]} 22. axb6 {[%emt 0:00:03]} Nxb6 {[%emt 0:00:15]} 23. Bd3 {[%emt 0:00:42]} Nd7 {[%emt 0:07:07]} 24. Bd2 {[%emt 0:08:44]} Reb8 {[%emt 0:03:59]} 25. Ra2 {[%emt 0:02:42]} Bd4 {[%emt 0:01:58]} 26. Ne2 {[%emt 0:00:52]} Ne5 {[%emt 0:01:36]} 27. Nxd4 {[%emt 0:02:17]} Nxd3 {[%emt 0:00:26]} 28. cxd3 {[%emt 0:04:03]} cxd4 {[%emt 0:00:12]} 29. Bf4 {[%emt 0:00:14]} Rd8 {[%emt 0:00:22]} 30. Bg5 {[%emt 0:00:05]} Rd7 {[%emt 0:02:43]} 31. Bf6+ {[%emt 0:00:07]} Kg8 {[%emt 0:01:00]} 32. Bxd4 {[%emt 0:00:06]} Rc8 {[%emt 0:00:23]} 33. b4 {[%emt 0:00:58]} f5 {[%emt 0:00:32]} 34. f3 {[%emt 0:01:27]} Kf7 {[%emt 0:00:31]} 35. b5 {[%emt 0:01:21]} axb5 {[%emt 0:01:11]} 36. Rb1 {[%emt 0:00:02]} f4 {[%emt 0:01:49]} 37. g3 {[%emt 0:04:30]} g5 {[%emt 0:00:22]} 38. h4 {[%emt 0:00:25]} Kg6 {[%emt 0:02:41]} (38... gxh4 39. gxh4 Rdc7 40. Rxb5 Rc1+ 41. Kf2 R8c2+ 42. Rxc2 Rxc2+ 43. Ke1 Ba6) 39. hxg5 {[%emt 0:00:30]} fxg3 {[%emt 0:01:53]} 40. Kg2 {[%emt 0:00:31]} Kxg5 {[%emt 0:00:28]} 41. Kxg3 {[%emt 0:30:08]} Rh7 {[%emt 0:30:33]} 42. Rxb5 {[%emt 0:01:30] [#] White wants to mate with f4+.} Rg8 {[%emt 0:00:56]} 43. Rb6 {[%emt 0:03:48]} Rg6 {[%emt 0:01:50]} 44. f4+ {[%emt 0:00:27]} Kh5+ {[%emt 0:00:34]} 45. Kf3 {[%emt 0:00:05] Weighted Error Value: White=0.09 (flawless) /Black=0.55} 1-0